Cogmind - Beta 13 @@@ ROGUE MODE // 2024.03.10 @ 10:41:19 Player: Ferns Result: Destroyed by P-60 Hacker with Shock Rifle Performance ------------- Evolutions (0) 0 Regions Visited (4) 800 Robots Destroyed (37) 185 Value Destroyed (713) 713 Prototype IDs (4) 80 Alien Tech Used (0) 0 Bonus (81) 81 TOTAL SCORE: 1859 Bonus ------- Follower Combat Kills 97 Friendly Fire -16 Cogmind --------- Core Integrity 0/250 Matter 300/300 Energy 160/160 System Corruption 0% Temperature Cool (69) Movement Rolling (175) Ox5 Location -9/Recycling Parts ------- > --- POWER (1) -------- Light Nuclear Core > --- PROPULSION (2) --- Compact Wheel > --- UTILITY (2) ------ Huge Storage Unit Signal Interpreter > --- WEAPON (2) ------- Field Laser Ion Cannon > --- INVENTORY (25) --- Light Ion Engine Deuterium Engine Wheel Flight Unit Flight Unit Flight Unit Flight Unit Scrap Engine Cooling System Small Storage Unit Medium Matter Pod (100) Structural Scanner Structural Scanner Visual Processing Unit Subdweller Optics Experimental Sensor Array Signal Interpreter Improved Terrain Scanner Weapon Shielding Scrap Shield Hacking Suite Light Cannon Mining Laser Peak State ------------ > --- POWER ------------ Light Nuclear Core > --- PROPULSION ------- Wheel Compact Wheel > --- UTILITY ---------- Huge Storage Unit Signal Interpreter > --- WEAPON ----------- Field Laser Ion Cannon > --- INVENTORY -------- Light Ion Engine Deuterium Engine Armored Wheel Flight Unit Flight Unit Flight Unit Flight Unit Scrap Engine Improved Heat Sink Small Storage Unit Medium Matter Pod Structural Scanner Structural Scanner Visual Processing Unit Subdweller Optics Experimental Sensor Array Signal Interpreter Improved Terrain Scanner Weapon Shielding Scrap Shield Hacking Suite Light Cannon Mining Laser [Rating: 19] Favorites ----------- Power Light Ion Engine Engine Light Ion Engine Power Core Light Nuclear Core Propulsion Compact Wheel Wheel Compact Wheel Utility Huge Storage Unit Device Seismic Detector Storage Huge Storage Unit Processor Signal Interpreter Weapon Light Cannon Energy Gun Field Laser Energy Cannon Ion Cannon Ballistic Gun Assault Rifle Ballistic Cannon Light Cannon Special Weapon Mining Laser Build | -11 -10 -10 -10 -9 ------- Run | Yrd Mat Min Sub Rec Slots Evolved . | . . . . . Power . | . . . . . Propulsion . | . . . . . Utility . | . . . . . Weapon . | . . . . . Parts Attached 33 | 7 11 6 5 4 Power 5 | 1 . 3 1 . Engine 4 | 1 . 3 . . Core 1 | . . . 1 . Reactor . | . . . . . Propulsion 10 | 2 3 1 . 4 Treads . | . . . . . Leg . | . . . . . Wheel 10 | 2 3 1 . 4 Hover . | . . . . . Flight . | . . . . . Utility 4 | 2 2 . . . Device 1 | 1 . . . . Storage 2 | 1 1 . . . Processor 1 | . 1 . . . Hackware . | . . . . . Protection . | . . . . . Artifact . | . . . . . Weapon 14 | 2 6 2 4 . Energy Gun 2 | . 1 1 . . Energy Cannon 2 | . . . 2 . Ballistic Gun 3 | 2 . 1 . . Ballistic Cannon 5 | . 5 . . . Launcher . | . . . . . Special Weapon 2 | . . . 2 . Impact Weapon . | . . . . . Slashing Weapon . | . . . . . Piercing Weapon . | . . . . . Special Melee Weapon . | . . . . . Unidentified Prototypes 1 | . 1 . . . Parts Lost 5 | . 1 1 2 1 Power 2 | . . 1 1 . Propulsion 3 | . 1 . 1 1 Utility . | . . . . . Weapon . | . . . . . Highest Loss Streak 2 | . 1 1 2 1 To Critical Strikes 1 | . . . 1 . Average Slot Usage (%) 98 | . 97 100 99 98 Engine 11 | . 14 14 13 . Core 2 | . . . . 14 Wheel 27 | . 27 28 27 26 Device 1 | . 4 . . . Storage 14 | . 14 14 14 14 Processor 12 | . 7 14 14 14 Energy Gun 7 | . . 5 14 14 Energy Cannon 3 | . . . 6 14 Ballistic Gun 6 | . . 13 6 . Ballistic Cannon 11 | . 26 9 . . Naked Turns . | . . . . . Heaviest Build 94 | 13 90 90 94 94 Greatest Support 32 | 26 26 32 32 28 Greatest Overweight (x) 8 | . 8 3 5 5 Average Overweight (x) 2 | . 2 2 2 3 Largest Inventory Capacity 25 | 8 25 25 25 25 Average Capacity 24 | 7 24 25 25 25 Most Carried 25 | 5 18 23 25 25 Average Carried 18 | 2 12 19 24 24 Final Capacity 25 | 8 25 25 25 25 Final Carried 25 | 4 18 22 24 25 Class Distribution -------------------- 100% | Mutant Dominant Class ---------------- Mutant | -10/Materials Mutant | -10/Mines Mutant | -10/Subcaves Mutant | -9/Recycling Resources | -11 -10 -10 -10 -9 ----------- Run | Yrd Mat Min Sub Rec Matter Collected 1263 | 175 639 201 192 56 Remotely . | . . . . . Salvage Created 957 | 42 477 155 133 150 Parts 57 | 7 24 12 6 8 Haulers Intercepted 2 | . 2 . . . Recyclers Shooed 2 | . . 1 . 1 Parts Field Recycled . | . . . . . Retrieved Matter . | . . . . . Parts Self-Destructed 11 | . . . 11 . Prevented . | . . . . . Kills | -11 -10 -10 -10 -9 ------- Run | Yrd Mat Min Sub Rec Combat Hostiles Destroyed 21 | . 8 8 4 1 Guns 10 | . . 6 4 . Cannons 11 | . 8 2 . 1 Classes Destroyed 10 | 1 6 1 2 . Builder 1 | . 1 . . . Tunneler 5 | 3 1 1 . . Hauler 2 | . 2 . . . Recycler 3 | . 1 1 . 1 Operator 2 | . 2 . . . Watcher 3 | . 3 . . . Swarmer 9 | . . 8 1 . Grunt 8 | . 8 . . . Sentry 2 | . . . 1 1 Subdweller 2 | . . . 2 . Best Kill Streak 6 | 2 6 3 1 1 Combat Bots Only 3 | . 2 3 1 1 Max Kills in Single Turn 2 | 1 2 1 1 1 Gunslinging . | . . . . . Exploded . | . . . . . Melee . | . . . . . Uniques/NPCs Destroyed . | . . . . . Combat | -11 -10 -10 -10 -9 -------- Run | Yrd Mat Min Sub Rec Hostile Shots Fired 142 | . 27 86 16 13 Missed 40 | . 6 22 7 5 Damage Taken 1113 | . 287 530 175 121 Core 257 | . 84 118 25 30 Absorbed by Shields . | . . . . . Core Remaining (%) 100 | 100 . . . . Volleys Fired 117 | 9 41 36 22 9 Largest 2 | 2 2 2 2 2 Hottest 163 | 40 70 83 163 123 Shots Fired 225 | 18 82 69 43 13 Gun 88 | 18 . 26 35 9 Cannon 132 | . 82 43 3 4 Launcher . | . . . . . Special 5 | . . . 5 . Kinetic 176 | 18 82 62 14 . Thermal 49 | . . 7 29 13 Explosive . | . . . . . Electromagnetic . | . . . . . Robot Hit Streak 14 | 4 14 9 12 4 Robot Miss Streak 9 | 3 8 9 2 2 Penetration Max . | . . . . . Secondary Targets 1 | . . 1 . . Max Gunslinging Chain 1 | . . 1 . . Shots Hit Robots 109 | 8 48 32 12 9 Core Hits 44 | 3 21 10 8 2 Critical Kills . | . . . . . Critical Parts Destroyed . | . . . . . Critical Strikes 4 | . 1 1 . 2 Burn 3 | . . 1 . 2 Blast 1 | . 1 . . . Melee Attacks . | . . . . . Impact . | . . . . . Slashing . | . . . . . Piercing . | . . . . . Sneak Attacks . | . . . . . Combat Hostiles . | . . . . . Follow-up Attacks . | . . . . . Damage Inflicted 1867 | 96 867 513 209 182 Guns 584 | 96 . 193 186 109 Cannons 1283 | . 867 320 23 73 Explosions . | . . . . . Melee . | . . . . . Ramming . | . . . . . Kinetic 1489 | 96 867 459 67 . Thermal 378 | . . 54 142 182 Explosive . | . . . . . Electromagnetic . | . . . . . Impact . | . . . . . Slashing . | . . . . . Piercing . | . . . . . Highest Corruption . | . . . . . Average Corruption . | . . . . . Corruption Purged . | . . . . . Corruption Blocked . | . . . . . Overload Shots . | . . . . . Overflow Damage . | . . . . . Projectiles . | . . . . . Explosions . | . . . . . Melee . | . . . . . Knockbacks 15 | . 9 6 . . Impact . | . . . . . Kinetic 15 | . 9 6 . . Secondary . | . . . . . Self-Inflicted Damage . | . . . . . Shots . | . . . . . Rammed . | . . . . . Targets Rammed . | . . . . . Kicked . | . . . . . Crushed . | . . . . . Highest Temperature 138 | . 81 126 6 138 Average Temperature 35 | . 24 45 3 61 Received Heat Transfer 174 | . 156 . 18 . Siege Activations . | . . . . . Robots Corrupted . | . . . . . Combat Hostiles . | . . . . . Parts Fried . | . . . . . Impact Corruptions . | . . . . . Robots Melted . | . . . . . Combat Hostiles . | . . . . . Parts Melted 2 | . . . 1 1 Heat Transferred 925 | . . 185 296 444 Parts Sabotaged . | . . . . . Parts Stolen . | . . . . . Parts Stripped . | . . . . . Power Chain Reactions . | . . . . . Alert | -11 -10 -10 -10 -9 ------- Run | Yrd Mat Min Sub Rec Peak Influence 159 | 15 141 159 . 110 Initial 79 | . 9 4 . 79 Average 48 | 5 41 52 . 58 Maximum Alert Level . | . . . . . Low Security (%) 100 | 100 100 100 . 100 Level 1 . | . . . . . Level 2 . | . . . . . Level 3 . | . . . . . Level 4 . | . . . . . Level 5 . | . . . . . High Security . | . . . . . Max Security . | . . . . . Squads Dispatched 1 | . . 1 . . Investigation 1 | . . 1 . . Extermination . | . . . . . Reinforcement . | . . . . . Assault . | . . . . . Garrison . | . . . . . Intercept . | . . . . . Searches Triggered . | . . . . . Construction Impeded . | . . . . . Haulers Reinforced . | . . . . . Active Scanning Responses . | . . . . . Cargo Convoy Interrupts . | . . . . . Stealth | -11 -10 -10 -10 -9 --------- Run | Yrd Mat Min Sub Rec Distress Signals 1 | . 1 . . . Communications Jammed . | . . . . . Distress Signals . | . . . . . Times Spotted 48 | . 16 10 17 5 Peak Tracking Total 5 | . 4 3 5 4 Tactical Retreats 3 | . 1 . 2 . Traps | -11 -10 -10 -10 -9 ------- Run | Yrd Mat Min Sub Rec Traps Triggered 1 | . 1 . . . Indirectly . | . . . . . Trap Hack Attempts . | . . . . . Triggered . | . . . . . Disarmed . | . . . . . Reprogrammed . | . . . . . Reused . | . . . . . Traps Extracted . | . . . . . Installed . | . . . . . Triggered . | . . . . . Machines | -11 -10 -10 -10 -9 ---------- Run | Yrd Mat Min Sub Rec Machines Disabled . | . . . . . Max in Single Turn . | . . . . . Machines Repaired . | . . . . . Machines Dismantled . | . . . . . Machines Sabotaged . | . . . . . Overloaded Fab Kills . | . . . . . Hacking | -11 -10 -10 -10 -9 --------- Run | Yrd Mat Min Sub Rec Machines Accessed 14 | . 7 1 1 5 Terminals 11 | . 7 . . 4 Fabricators . | . . . . . Repair Stations . | . . . . . Recycling Units 1 | . . . . 1 Scanalyzers . | . . . . . Garrison Access . | . . . . . Total Hacks 25 | . 12 1 1 11 Successful 14 | . 8 1 1 4 Failed 11 | . 4 . . 7 Catastrophic 2 | . . . . 2 Database Lockouts . | . . . . . Manual 8 | . 1 . . 7 Terminals 20 | . 12 . . 8 Fabricators . | . . . . . Repair Stations . | . . . . . Recycling Units 3 | . . . . 3 Scanalyzers . | . . . . . Garrison Access . | . . . . . Terminal Hacks 11 | . 7 1 1 2 Record 1 | . . . 1 . Prototype ID Bank 2 | . 1 . . 1 Open Door 1 | . . 1 . . Level Access Points 1 | . . . . 1 Locate Traps 3 | . 3 . . . Hauler Manifests 2 | . 2 . . . Zone Layout 1 | . 1 . . . Fabricator Hacks . | . . . . . Repair Station Hacks . | . . . . . Recycling Unit Hacks 1 | . . . . 1 Retrieve Components 1 | . . . . 1 Scanalyzer . | . . . . . Garrison Access Hacks . | . . . . . Unauthorized Hacks 2 | . 1 . . 1 Terminals 2 | . 1 . . 1 Botnet 1 | . . . . 1 Operators 1 | . 1 . . . Fabricators . | . . . . . Repair Stations . | . . . . . Recycling Units . | . . . . . Scanalyzers . | . . . . . Garrison Access . | . . . . . Data Cores Recovered 2 | . 2 . . . Used 1 | . 1 . . . Hacking Detections 8 | . 4 . . 4 Full Trace Events . | . . . . . Feedback Events . | . . . . . Feedback Blocked . | . . . . . Robot Schematics Acquired . | . . . . . Robots Built . | . . . . . Authchips . | . . . . . Time . | . . . . . Total Robot Build Rating . | . . . . . Part Schematics Acquired . | . . . . . Parts Built . | . . . . . Authchips . | . . . . . Time . | . . . . . Total Part Build Rating . | . . . . . Parts Repaired . | . . . . . Time . | . . . . . Parts Recycled . | . . . . . Recycled Matter . | . . . . . Retrieved Matter . | . . . . . Retrieved Components 2 | . . . . 2 Parts Scanalyzed . | . . . . . Part Schematics Acquired . | . . . . . Parts Damaged . | . . . . . Bothacking | -11 -10 -10 -10 -9 ------------ Run | Yrd Mat Min Sub Rec Used RIF Installer . | . . . . . Robots Hacked . | . . . . . Non-combat . | . . . . . Combat . | . . . . . Robot Hacks Applied . | . . . . . Relay Couplers Released . | . . . . . Fabnet Peak Effective % . | . . . . . Robots Rewired . | . . . . . Allies Hacked . | . . . . . Hacks Repelled . | . . . . . Allies | -11 -10 -10 -10 -9 -------- Run | Yrd Mat Min Sub Rec Total Allies 4 | . . 4 . . Largest Group 3 | . . 3 3 . Highest-Rated Group 40 | . . 40 40 . Highest-Rated Ally 31 | . . 31 16 . Total Orders . | . . . . . Ally Attacks 23 | . . 10 13 . Total Damage 177 | . . 62 115 . Kills 4 | . . 1 3 . Allies Corrupted . | . . . . . Allies Melted . | . . . . . Intel | -11 -10 -10 -10 -9 ------- Run | Yrd Mat Min Sub Rec Robot Analysis Total . | . . . . . Derelict Logs Recovered 3 | . . 2 1 . Drone Launches . | . . . . . Drone Recoveries . | . . . . . Exploration | -11 -10 -10 -10 -9 ------------- Run | Yrd Mat Min Sub Rec Turns Passed 4672 | 92 1369 1483 1092 636 Spaces Moved 2861 | 56 874 752 753 426 Core 7 | 7 . . . . Treads . | . . . . . Legs . | . . . . . Wheels 2854 | 49 874 752 753 426 Hover . | . . . . . Flight . | . . . . . Fastest Speed 50 | 50 90 130 130 135 Average Speed 132 | 84 133 130 130 140 Slowest Speed 200 | 90 200 135 175 175 Overloaded Moves . | . . . . . Propulsion Burnouts . | . . . . . Robots Hopped . | . . . . . Cave-ins Triggered . | . . . . . Exploration Rate (%) 68 | 4 97 101 54 87 Regions Visited 4 Branch Regions 3 Pre-discovered Areas 2 | . . 2 . . Known Exits Taken 3 | . 1 1 1 . Unknown Exits Taken 1 | 1 . . . . Scrap Searched 1 | . . 1 . . Spaces Dug . | . . . . . Terrain Destroyed 1 | . . . . 1 Melee . | . . . . . Projectile 1 | . . . . 1 AOE . | . . . . . Terrain Rammed . | . . . . . Walls Destroyed . | . . . . . Machines Disabled . | . . . . . Actions | -11 -10 -10 -10 -9 --------- Run | Yrd Mat Min Sub Rec Total 3522 | 82 996 1186 806 452 Wait 446 | . 45 380 21 . Move 2857 | 55 873 751 752 426 Hop . | . . . . . Pick Up 53 | 11 22 9 4 7 Fast Attach . | . . . . . Attach 16 | 7 6 1 1 1 Detach . | . . . . . Swap 17 | . 5 5 4 3 Drop 16 | . 4 4 2 6 Fire 117 | 9 41 36 22 9 Melee . | . . . . . Ram . | . . . . . Kick . | . . . . . Crush . | . . . . . Escape Stasis . | . . . . . Rewire . | . . . . . Trap . | . . . . . Miscellaneous . | . . . . . Route ------- -11/Scrapyard -10/Materials (discovered 5 exits: *Mat x3 / *Min x2) -10/Mines (discovered 3 exits: *Mat x2 / *Sub) -10/Subcaves -9/Recycling (discovered 1 exit: Fac) History --------- Turn | Location | Event 7 | -11/Scrapyard | Discovered new exit (range 15) 93 | -11/Scrapyard | Entered Materials 306 | -10/Materials | Build established: Mutant 600 | -10/Materials | Discovered new exit (range 13) 834 | -10/Materials | Discovered new exit (range 12) 991 | -10/Materials | Discovered new exit (range 9) 1115 | -10/Materials | Discovered new exit (range 8) 1148 | -10/Materials | Identified exit to Materials 1262 | -10/Materials | Discovered exit to Materials (range 6) 1459 | -10/Materials | Identified exit to Mines 1462 | -10/Materials | Entered Mines 1516 | -10/Mines | Core integrity fell below 50% 1617 | -10/Mines | Found a hidden stash of uninstalled traps 2098 | -10/Mines | Received a Mining Laser from a helpful Derelict 2219 | -10/Mines | Learned location of Zion (-7) 2232 | -10/Mines | Found a damaged Exp. Sensor Array with a note attached 2234 | -10/Mines | Found Prototype Device 2297 | -10/Mines | Discovered exit to Materials (range 9) 2358 | -10/Mines | Met a Derelict shopkeep closing up shop 2490 | -10/Mines | Core integrity fell below 20% 2650 | -10/Mines | Assisted by bots powering up and referring to "LRC-V3" 2802 | -10/Mines | Discovered exit to Materials (range 4) 2923 | -10/Mines | Discovered new exit (range 6) 2929 | -10/Mines | Identified exit to Subcaves 2945 | -10/Mines | Entered Subcaves 2945 | -10/Subcaves | Accompanied by 3 allies 2964 | -10/Subcaves | Learned Materials emergency access door positions 3000 | -10/Subcaves | Ambushed by swarm of Subdwellers 3048 | -10/Subcaves | Lost 3 allies 3279 | -10/Subcaves | Visited Clippyterm 3420 | -10/Subcaves | A swath of the cavern ceiling suddenly collapsed 3644 | -10/Subcaves | A swath of the cavern ceiling suddenly collapsed 4022 | -10/Subcaves | Discovered new exit (range 9) 4036 | -10/Subcaves | Identified exit to Recycling 4037 | -10/Subcaves | Entered Recycling 4059 | -9/Recycling | Found Scrap Engine 4527 | -9/Recycling | Identified exit to Factory 4673 | -9/Recycling | Destroyed by P-60 Hacker with Shock Rifle Last Messages --------------- 04355_ R-06 Scavenger destroyed. 04359_ Dropped Com. Wheel. 04359_ Acquired Com. Wheel. 04361_ R-06 Scavenger collects Beam Rifle. 04426_ Dropped Imp. Heat Sink. 04426_ Acquired Cooling System. 04436_ Acquired 30 matter. 04459_ R-06 Scavenger collects Imp. Heat Sink. 04498_ Connecting with Terminal... >>Access(Main) Found 1 level access point to Factory: (9,9) Map updated. 04663_ I-25 Savior springs to life. 04663_ P-60 Hacker springs to life. 04663_ P-60 Hacker suffers critical hit (Burn). 04663_ L-31 Rogue springs to life. 04664_ P-60 Hacker springs to life. 04668_ Arm. Wheel destroyed. 04670_ Atomic Centrifuge disabled. Map ----- +----------------------------------------------------+ | ??????# ## # ????# | | ?????## ########+####### #######???# | | ?????# #????????# | | ?????# ##????????# | | ?????# #?????????# | | ?????# #?????????# | | ?????# #??????######+#### | | ?????# #??????# | | ?????# """ """ ######## | | ?????# """ """ | | ?????# """ """ ##+################+#### | | ?????# #?????????????# | | ?????# #?????????????# | | ?????### """ """ #?????????????# | | ?????### """ """ #?????????????# | | ?????# """ """ +????????????# | | ????## #????????????## | | ???#"" r #?????????????# | | ???#"Y """ """ #?????????????# | | ???#"" """ """ #?????????????######+### | | ????## """ """ ##+#???????????????#???? | | ?????# #???????????????# ??? | | ?????# #???????????????# ??? | | ???### """ "" ###?????????##### ### | | ???#"" """ """ ????????? | | ???#"Y """ """ @##### #????????? | | ???#"" p#####+####??????? | | ????## i l ] +????? | | ?????# ########## ! #????? | | ?????# ##+########?# #?????? | | ?????# # ### ] ! +??????"""" | | ??####+## # ""# #???"""""""" | | ??# # # ""# % # """ """ | | ?## # # """ """ T"# ! ! # | | ?# # # """ """ ""# = !# | | ??# # # """ """ ""########### " """"" | | ??# ! # + #####?????????????"""""" | | ??# % # # # [[#?????#???????" """ | | ??# % # #####+#####[[[###|||### | | ??# + | | ??# # ##### #????######+### | | ??# # #???# #?????????????? | | ?# # #???# +?????????????? | | ?## #########???##### ######?????????????? | | ??#! #?????????????????#??????????????????? | | ??#######????????????????????????????????????? | | ?????????????????????????????????????????????? | | ?????????????????????????????????????????????? | | | | | +----------------------------------------------------+ Best States ------------- Heat Dissipation 25 Energy Generation 14 Energy Capacity 250 Matter Stores 300 Matter Capacity 300 Sight Range 16 Terrain Scan Density 10 Evasion (%) 42 Item Schematics ----------------- None Robot Schematics ------------------ None Fabricated ------------ Nothing Alien Tech Used ----------------- None Achievements -------------- None Challenges ------------ None Game ------ Seed PowerProcessingLink Manual? 0 Play Time 00:32:46 Cumulative 18.1 hours Start 2024.03.10 @ 01:55:03 End 2024.03.10 @ 10:41:19 Sessions 3 Manual Loads 0 Difficulty Rogue Special Mode None Game No. 15 Rogue 9 Adventurer 6 Explorer 0 Win Type - Total 0 Types 0/0/0/0/0/0/0/0/0 Lore% 12 Gallery% 26 Achievement% 23 Wizard Run 0 Options --------- Layout 1 ASCII 0 Keyboard 0 Movement Mouse Keybinds 0 Fullscreen 2 Font 18/SmallcapsGlow Map View 51x43 Zoom Use 0% Tactical HUD 1 Map Filters NONE Filters NONE Steam 0 RUN: e46bb016-1b91-4f88-bd58-61f60bae6efb